fUST/lending_fUST_20250718
["ID","MTS","AMOUNT","RATE_DAILY","PERIOD"]
[372873729,1752787844614,-860.36,0.0001734,2]
[372873730,1752787844624,-586.2915561,0.0001734,2]
[372873731,1752787844633,-842.54,0.0001734,2]
[372873732,1752787844643,-460.0,0.0001734,2]
[372873733,1752787844651,-460.0,0.0001734,2]
[372873734,1752787844660,-460.0,0.0001734,2]
[372873735,1752787844670,-460.0,0.00017341,2]
[372873736,1752787844681,-460.0,0.00017341,2]
[372873737,1752787844691,-460.0,0.00017341,2]
[372873738,1752787844700,-460.0,0.00017341,2]
[372873739,1752787844709,-460.0,0.00017341,2]
[372873740,1752787844718,-460.0,0.00017341,2]
[372873741,1752787844728,-460.0,0.00017341,2]
[372873742,1752787844738,-460.0,0.00017341,2]
[372873743,1752787844747,-460.0,0.00017341,2]
[372873744,1752787844757,-460.0,0.00017341,2]
[372873745,1752787844767,-460.0,0.00017341,2]
[372873746,1752787844777,-460.0,0.00017341,2]
[372873747,1752787844787,-460.0,0.00017341,2]
[372873748,1752787844796,-460.0,0.00017341,2]
[372873749,1752787844806,-460.0,0.00017341,2]
[372873750,1752787844816,-460.0,0.00017341,2]
[372873751,1752787844826,-315.75636852,0.00017341,2]
[372873752,1752787844836,-460.0,0.00017341,2]
[372873753,1752787844847,-460.0,0.00017341,2]
[372873754,1752787844857,-460.0,0.00017341,2]
[372873755,1752787844867,-460.0,0.00017341,2]
[372873756,1752787844880,-508.89,0.00017341,2]
[372873757,1752787844889,-185.57574987,0.00017341,2]
[372873758,1752787844899,-460.0,0.00017341,2]
[372873759,1752787844909,-460.0,0.00017341,2]
[372873760,1752787844919,-397.61461477,0.00017341,2]
[372873761,1752787844935,-62.38538523,0.00017341,2]
[372873762,1752787844946,-797.17,0.00017341,2]
[372873763,1752787844956,-460.0,0.00017341,2]
[372873764,1752787844966,-460.0,0.00017342,2]
[372873765,1752787844975,-460.0,0.00017342,2]
[372873766,1752787844984,-151.0,0.00017342,2]
[372873767,1752787844993,-151.0,0.00017342,2]
[372873768,1752787845003,-151.0,0.00017342,2]
[372873769,1752787845011,-500.0,0.00017373,2]
[372873770,1752787845021,-512.45566095,0.00017373,2]
[372873771,1752787845030,-500.0,0.00017373,2]
[372873772,1752787845039,-500.0,0.00017373,2]
[372873773,1752787845049,-480.58236001,0.00017373,2]
[372873774,1752787845061,-500.0,0.00017373,2]
[372873775,1752787845071,-500.0,0.00017373,2]
[372873776,1752787845080,-500.0,0.00017373,2]
[372873777,1752787845090,-500.0,0.00017373,2]
[372873778,1752787845100,-500.0,0.00017373,2]
[372873779,1752787845111,-500.0,0.00017373,2]
[372873780,1752787845119,-500.0,0.00017373,2]
[372873781,1752787845128,-503.58664453,0.00017373,2]
[372873782,1752787845138,-500.0,0.00017373,2]
[372873783,1752787845148,-500.0,0.00017373,2]
[372873784,1752787845158,-434.03103832,0.00017373,2]
[372873785,1752787845167,-500.0,0.00017373,2]
[372873786,1752787845179,-500.0,0.00017373,2]
[372873787,1752787845189,-500.0,0.00017373,2]
[372873788,1752787845199,-500.0,0.00017373,2]
[372873789,1752787845208,-500.0,0.00017373,2]
[372873790,1752787845219,-500.0,0.00017373,2]
[372873791,1752787845230,-505.50054643,0.00017373,2]
[372873792,1752787845240,-500.0,0.00017431,2]
[372873793,1752787845250,-500.0,0.00017473,2]
[372873794,1752787845259,-500.0,0.00017473,2]
[372873795,1752787845269,-1497.90809597,0.00017515,2]
[372873796,1752787845279,-460.0,0.00017611,2]
[372873797,1752787845289,-460.0,0.00017611,2]
[372873798,1752787845299,-910.41,0.00017611,2]
[372873799,1752787845308,-1267.88,0.00017611,2]
[372873800,1752787845318,-957.69,0.00017611,2]
[372873801,1752787845328,-460.0,0.00017611,2]
[372873802,1752787845338,-460.0,0.00017611,2]
[372873803,1752787845347,-460.0,0.00017611,2]
[372873804,1752787845357,-1186.63,0.00017611,2]
[372873805,1752787845367,-500.0,0.00017611,2]
[372873806,1752787845377,-460.0,0.00017611,2]
[372873807,1752787845386,-1406.18,0.00017611,2]
[372873808,1752787845395,-460.0,0.00017611,2]
[372873809,1752787845405,-460.0,0.00017611,2]
[372873810,1752787845414,-460.0,0.00017611,2]
[372873811,1752787845424,-460.0,0.00017611,2]
[372873812,1752787845436,-460.0,0.00017611,2]
[372873813,1752787845446,-460.0,0.00017611,2]
[372873814,1752787845456,-460.0,0.00017611,2]
[372873815,1752787845465,-460.0,0.00017612,2]
[372873816,1752787845475,-460.0,0.00017612,2]
[372873817,1752787845484,-460.0,0.00017612,2]
[372873818,1752787845494,-460.0,0.00017612,2]
[372873819,1752787845504,-460.0,0.00017612,2]
[372873820,1752787845513,-460.0,0.00017612,2]
[372873821,1752787845523,-236.38,0.00017612,2]
[372873822,1752787845533,-460.0,0.00017612,2]
[372873823,1752787845542,-460.0,0.00017612,2]
[372873824,1752787845552,-460.0,0.00017612,2]
[372873825,1752787845562,-460.0,0.00017612,2]
[372873826,1752787845699,-460.0,0.00017612,2]
[372873827,1752787845709,-460.0,0.00017612,2]
[372873828,1752787845718,-527.91,0.00017612,2]
[372873830,1752787845739,-460.0,0.00017612,2]
[372873832,1752787845750,-460.0,0.00017612,2]
[372873834,1752787845763,-743.69,0.00017612,2]
[372873836,1752787845773,-460.0,0.00017612,2]
[372873838,1752787845784,-488.85,0.00017612,2]
[372873840,1752787845795,-573.18,0.00017612,2]
[372873842,1752787845804,-460.0,0.00017612,2]
[372873844,1752787845815,-460.0,0.00017613,2]
[372873846,1752787845825,-460.0,0.00017613,2]
[372873848,1752787845836,-460.0,0.00017613,2]
[372873850,1752787845846,-460.0,0.00017613,2]
[372873852,1752787845857,-460.0,0.00017613,2]
[372873855,1752787845867,-460.0,0.00017613,2]
[372873857,1752787845877,-460.0,0.00017613,2]
[372873859,1752787845887,-460.0,0.00017613,2]
[372873861,1752787845898,-460.0,0.00017613,2]
[372873863,1752787845908,-460.0,0.00017613,2]
[372873865,1752787845919,-215.69,0.00017613,2]
[372873867,1752787845930,-2558.1,0.00017613,2]
[372873869,1752787845940,-902.37,0.00017613,2]
[372873872,1752787845950,-460.0,0.00017613,2]
[372873873,1752787845960,-460.0,0.00017613,2]
[372873874,1752787845970,-460.0,0.00017613,2]
[372873875,1752787845981,-858.09,0.00017613,2]
[372873876,1752787845991,-1014.74,0.00017614,2]
[372873877,1752787846000,-460.0,0.00017614,2]
[372873878,1752787846010,-860.36,0.00017614,2]
[372873879,1752787846020,-842.54,0.00017614,2]
[372873880,1752787846030,-460.0,0.00017614,2]
[372873881,1752787846040,-460.0,0.00017614,2]
[372873882,1752787846051,-460.0,0.00017614,2]
[372873883,1752787846063,-460.0,0.00017615,2]
[372873884,1752787846074,-460.0,0.00017615,2]
[372873885,1752787846084,-460.0,0.00017615,2]
[372873886,1752787846094,-460.0,0.00017615,2]
[372873887,1752787846105,-460.0,0.00017615,2]
[372873888,1752787846114,-460.0,0.00017615,2]
[372873889,1752787846124,-460.0,0.00017615,2]
[372873890,1752787846135,-528.11373848,0.00017615,2]
[372873891,1752787846146,-460.0,0.00017615,2]
[372873892,1752787846156,-151.0,0.00017615,2]
[372873893,1752787846166,-151.0,0.00017615,2]
[372873894,1752787846178,-460.0,0.00017615,2]
[372873895,1752787846188,-460.0,0.00017615,2]
[372873896,1752787846198,-151.0,0.00017615,2]
[372873898,1752787846208,-460.0,0.00017615,2]
[372873900,1752787846218,-460.0,0.00017615,2]
[372873901,1752787846228,-460.0,0.00017615,2]
[372873902,1752787846238,-460.0,0.00017615,2]
[372873903,1752787846248,-508.89,0.00017615,2]
[372873904,1752787846258,-460.0,0.00017615,2]
[372873906,1752787846268,-460.0,0.00017615,2]
[372873908,1752787846278,-460.0,0.00017615,2]
[372873909,1752787846287,-797.17,0.00017615,2]
[372873910,1752787846298,-460.0,0.00017615,2]
[372873911,1752787846307,-460.0,0.00017616,2]
[372873912,1752787846317,-250.27,0.00017673,2]
[372873914,1752787846327,-500.0,0.00017868,2]
[372873915,1752787846338,-460.0,0.00017885,2]
[372873916,1752787846348,-910.41,0.00017885,2]
[372873917,1752787846358,-1267.88,0.00017885,2]
[372873918,1752787846367,-957.69,0.00017885,2]
[372873919,1752787846378,-563.24004569,0.00017885,2]
[372873920,1752787846387,-460.0,0.00017885,2]
[372873921,1752787846397,-460.0,0.00017885,2]
[372873922,1752787846407,-1186.63,0.00017885,2]
[372873923,1752787846417,-460.0,0.00017885,2]
[372873924,1752787846428,-1406.18,0.00017885,2]
[372873926,1752787846438,-460.0,0.00017885,2]
[372873928,1752787846447,-460.0,0.00017885,2]
[372873930,1752787846458,-460.0,0.00017885,2]
[372873932,1752787846467,-460.0,0.00017885,2]
[372873933,1752787846477,-460.0,0.00017885,2]
[372873935,1752787846486,-460.0,0.00017885,2]
[372873936,1752787846495,-460.0,0.00017885,2]
[372873938,1752787846505,-460.0,0.00017886,2]
[372873939,1752787846515,-460.0,0.00017886,2]
[372873940,1752787846523,-496.26246952,0.00017886,2]
[372873941,1752787846533,-460.0,0.00017886,2]
[372873942,1752787846542,-460.0,0.00017886,2]
[372873943,1752787846551,-334.21962651,0.00017886,2]
[372873944,1752787846561,-460.0,0.00017886,2]
[372873945,1752787846570,-460.0,0.00017886,2]
[372873946,1752787846579,-500.0,0.00017886,2]
[372873948,1752787846589,-460.0,0.00017886,2]
[372873949,1752787846598,-460.0,0.00017886,2]
[372873950,1752787846609,-460.0,0.00017886,2]
[372873951,1752787846618,-460.0,0.00017886,2]
[372873952,1752787846627,-527.91,0.00017886,2]
[372873953,1752787846637,-460.0,0.00017886,2]
[372873954,1752787846647,-460.0,0.00017886,2]
[372873955,1752787846656,-743.69,0.00017886,2]
[372873956,1752787846666,-460.0,0.00017886,2]
[372873957,1752787846676,-53.16875498,0.00017886,2]
[372873958,1752787846692,-435.68124502,0.00017886,2]
[372873959,1752787846702,-460.0,0.00017886,2]
[372873960,1752787846711,-460.0,0.00017887,2]
[372873961,1752787846720,-460.0,0.00017887,2]
[372873962,1752787846729,-460.0,0.00017887,2]
[372873963,1752787846738,-594.10854737,0.00017887,2]
[372873964,1752787846747,-460.0,0.00017887,2]
[372873965,1752787846755,-305.39820781,0.00017887,2]
[372873966,1752787846765,-460.0,0.00017887,2]
[372873967,1752787846774,-460.0,0.00017887,2]
[372873968,1752787846782,-460.0,0.00017887,2]
[372873969,1752787846791,-460.0,0.00017887,2]
[372873970,1752787846804,-2558.1,0.00017887,2]
[372873971,1752787846814,-902.37,0.00017887,2]
[372873972,1752787846823,-460.0,0.00017887,2]
[372873973,1752787846833,-460.0,0.00017887,2]
[372873974,1752787846842,-460.0,0.00017887,2]
[372873975,1752787846851,-858.09,0.00017887,2]
[372873976,1752787846861,-1014.74,0.00017888,2]
[372873977,1752787846871,-460.0,0.00017888,2]
[372873978,1752787846880,-860.36,0.00017888,2]
[372873979,1752787846890,-842.54,0.00017888,2]
[372873980,1752787846901,-460.0,0.00017888,2]
[372873981,1752787846910,-460.0,0.00017888,2]
[372873982,1752787846919,-460.0,0.00017888,2]
[372873983,1752787846929,-460.0,0.00017889,2]
[372873984,1752787846938,-460.0,0.00017889,2]
[372873985,1752787846947,-460.0,0.00017889,2]
[372873986,1752787846957,-460.0,0.00017889,2]
[372873987,1752787846967,-460.0,0.00017889,2]
[372873988,1752787846976,-460.0,0.00017889,2]
[372873989,1752787846986,-460.0,0.00017889,2]
[372873990,1752787846996,-460.0,0.00017889,2]
[372873991,1752787847005,-460.0,0.00017889,2]
[372873992,1752787847016,-460.0,0.00017889,2]
[372873993,1752787847026,-460.0,0.00017889,2]
[372873994,1752787847035,-151.0,0.00017889,2]
[372873995,1752787847045,-151.0,0.00017889,2]
[372873996,1752787847056,-460.0,0.00017889,2]
[372873997,1752787847069,-460.0,0.00017889,2]
[372873998,1752787847079,-460.0,0.00017889,2]
[372873999,1752787847089,-508.89,0.00017889,2]
[372874000,1752787847099,-460.0,0.00017889,2]
[372874001,1752787847109,-286.94368822,0.00017889,2]
[372874002,1752787847118,-460.0,0.00017889,2]
[372874003,1752787847128,-151.0,0.00017889,2]
[372874004,1752787847139,-151.0,0.00017889,2]
[372874005,1752787847148,-797.17,0.00017889,2]
[372874006,1752787847157,-214.77888614,0.00017889,2]
[372874007,1752787847166,-227.11795465,0.0001789,2]
[372874008,1752787847175,-1000.0,0.00017921,2]
[372874009,1752787847187,-1000.0,0.00017921,2]
[372874010,1752787847196,-1000.0,0.00017921,2]
[372874011,1752787847208,-1000.0,0.00017921,2]
[372874012,1752787847217,-500.0,0.00017921,2]
[372874013,1752787847227,-502.5197529,0.00017921,2]
[372874014,1752787847236,-989.12516167,0.00017921,2]
[372874015,1752787847245,-601.3340915,0.00017921,2]
[372874016,1752787847254,-458.25357939,0.00017921,2]
[372874017,1752787847263,-1000.0,0.00017921,2]
[372874018,1752787847272,-1000.0,0.00017921,2]
[372874019,1752787847282,-502.16808138,0.00017929,2]
[372874020,1752787847291,-151.0,0.00017932,2]
[372874021,1752787847300,-1000.0,0.0001802,2]
[372874022,1752787847310,-1000.0,0.0001802,2]
[372874023,1752787847319,-160.0,0.00018108,2]
[372874024,1752787847328,-160.0,0.00018108,2]
[372874025,1752787847338,-214.44804168,0.00018108,2]
[372874026,1752787847347,-160.0,0.00018108,2]
[372874027,1752787847356,-230.85589339,0.00018108,2]
[372874028,1752787847366,-215.59244943,0.00018108,2]
[372874029,1752787847375,-160.0,0.00018108,2]
[372874030,1752787847385,-839.15451687,0.00018108,2]
[372874031,1752787847394,-525.67742785,0.00018108,2]
[372874032,1752787847404,-12607.95677342,0.00018108,2]
[372874033,1752787847413,-160.0,0.0001811,2]
[372874034,1752787847423,-160.0,0.0001811,2]
[372874035,1752787847434,-476.16111942,0.0001811,2]
[372874036,1752787847444,-160.0,0.0001811,2]
[372874037,1752787847454,-1680.0,0.00018136,2]
[372874038,1752787847463,-460.0,0.00018159,2]
[372874039,1752787847473,-910.41,0.00018159,2]
[372874040,1752787847483,-1267.88,0.00018159,2]
[372874041,1752787847492,-957.69,0.00018159,2]
[372874042,1752787847502,-460.0,0.00018159,2]
[372874043,1752787847512,-460.0,0.00018159,2]
[372874044,1752787847522,-1186.63,0.00018159,2]
[372874045,1752787847532,-460.0,0.00018159,2]
[372874046,1752787847541,-151.0,0.00018159,2]
[372874047,1752787847550,-1406.18,0.00018159,2]
[372874048,1752787847559,-460.0,0.00018159,2]
[372874049,1752787847568,-151.0,0.00018159,2]
[372874050,1752787847576,-460.0,0.00018159,2]
[372874051,1752787847586,-460.0,0.00018159,2]
[372874052,1752787847595,-151.0,0.00018159,2]
[372874053,1752787847604,-151.0,0.00018159,2]
[372874054,1752787847614,-460.0,0.00018159,2]
[372874055,1752787847624,-460.0,0.00018159,2]
[372874056,1752787847633,-460.0,0.00018159,2]
[372874057,1752787847643,-460.0,0.00018159,2]
[372874058,1752787847652,-460.0,0.0001816,2]
[372874059,1752787847661,-151.0,0.0001816,2]
[372874060,1752787847670,-460.0,0.0001816,2]
[372874061,1752787847683,-151.0,0.0001816,2]
[372874062,1752787847692,-222.630114,0.0001816,2]
[372874063,1752787847701,-460.0,0.0001816,2]
[372874064,1752787847710,-460.0,0.0001816,2]
[372874065,1752787847719,-460.0,0.0001816,2]
[372874066,1752787847728,-460.0,0.0001816,2]
[372874067,1752787847738,-500.0,0.0001816,2]
[372874068,1752787847748,-460.0,0.0001816,2]
[372874069,1752787847758,-460.0,0.0001816,2]
[372874070,1752787847768,-460.0,0.0001816,2]
[372874071,1752787847778,-460.0,0.0001816,2]
[372874072,1752787847787,-527.91,0.0001816,2]
[372874073,1752787847797,-460.0,0.0001816,2]
[372874074,1752787847807,-460.0,0.0001816,2]
[372874075,1752787847816,-743.69,0.0001816,2]
[372874076,1752787847826,-474.16415281,0.0001816,2]
[372874077,1752787847835,-488.85,0.0001816,2]
[372874078,1752787847844,-155.69,0.0001816,2]
[372874079,1752787847853,-151.0,0.00018161,2]
[372874080,1752787847862,-151.0,0.00018161,2]
[372874081,1752787847872,-151.0,0.00018161,2]
[372874082,1752787847881,-151.0,0.00018161,2]
[372874083,1752787847890,-460.0,0.00018161,2]
[372874084,1752787847900,-460.0,0.00018161,2]
[372874085,1752787847909,-460.0,0.00018161,2]
[372874086,1752787847919,-460.0,0.00018161,2]
[372874087,1752787847933,-460.0,0.00018161,2]
[372874088,1752787847942,-460.0,0.00018161,2]
[372874089,1752787847951,-460.0,0.00018161,2]
[372874090,1752787847962,-460.0,0.00018161,2]
[372874091,1752787847971,-2558.1,0.00018161,2]
[372874092,1752787847981,-902.37,0.00018161,2]
[372874093,1752787847990,-460.0,0.00018161,2]
[372874094,1752787848000,-460.0,0.00018161,2]
[372874095,1752787848009,-460.0,0.00018161,2]
[372874096,1752787848019,-858.09,0.00018161,2]
[372874097,1752787848029,-1014.74,0.00018162,2]
[372874098,1752787848039,-460.0,0.00018162,2]
[372874099,1752787848049,-151.0,0.00018162,2]
[372874100,1752787848060,-860.36,0.00018162,2]
[372874101,1752787848073,-151.0,0.00018162,2]
[372874102,1752787848083,-842.54,0.00018162,2]
[372874103,1752787848093,-460.0,0.00018162,2]
[372874104,1752787848103,-460.0,0.00018162,2]
[372874105,1752787848113,-460.0,0.00018162,2]
[372874106,1752787848123,-460.0,0.00018163,2]
[372874107,1752787848132,-460.0,0.00018163,2]
[372874108,1752787848143,-460.0,0.00018163,2]
[372874109,1752787848153,-460.0,0.00018163,2]
[372874110,1752787848164,-460.0,0.00018163,2]
[372874111,1752787848174,-460.0,0.00018163,2]
[372874112,1752787848188,-460.0,0.00018163,2]
[372874113,1752787848198,-460.0,0.00018163,2]
[372874114,1752787848208,-460.0,0.00018163,2]
[372874115,1752787848219,-184.66755445,0.00018163,2]
[372874116,1752787848229,-460.0,0.00018163,2]
[372874117,1752787848239,-460.0,0.00018163,2]
[372874118,1752787848249,-460.0,0.00018163,2]
[372874119,1752787848260,-508.89,0.00018163,2]
[372874120,1752787848270,-460.0,0.00018163,2]
[372874121,1752787848281,-790.0,0.00018163,2]
[372874122,1752787848291,-460.0,0.00018163,2]
[372874123,1752787848302,-797.17,0.00018163,2]
[372874124,1752787848312,-150.0,0.00018241,2]
[372874125,1752787848322,-500.0,0.00018283,2]
[372874126,1752787848331,-2155.62,0.00018424,3]
[372874127,1752787848342,-1077.8,0.00018424,3]
[372874128,1752787848351,-538.9,0.00018424,3]
[372874129,1752787848361,-460.0,0.00018433,2]
[372874130,1752787848371,-910.41,0.00018433,2]
[372874131,1752787848499,-1267.88,0.00018433,2]
[372874132,1752787848509,-957.69,0.00018433,2]
[372874133,1752787848520,-460.0,0.00018433,2]
[372874134,1752787848530,-460.0,0.00018433,2]
[372874135,1752787848540,-1186.63,0.00018433,2]
[372874136,1752787848549,-460.0,0.00018433,2]
[372874137,1752787848560,-1406.18,0.00018433,2]
[372874138,1752787848570,-460.0,0.00018433,2]
[372874139,1752787848580,-460.0,0.00018433,2]
[372874140,1752787848590,-460.0,0.00018433,2]
[372874141,1752787848599,-460.0,0.00018433,2]
[372874142,1752787848609,-460.0,0.00018433,2]
[372874143,1752787848619,-460.0,0.00018433,2]
[372874144,1752787848629,-460.0,0.00018433,2]
[372874145,1752787848639,-460.0,0.00018434,2]
[372874146,1752787848648,-460.0,0.00018434,2]
[372874147,1752787848658,-460.0,0.00018434,2]
[372874148,1752787848667,-460.0,0.00018434,2]
[372874149,1752787848676,-460.0,0.00018434,2]
[372874150,1752787848687,-460.0,0.00018434,2]
[372874151,1752787848696,-151.0,0.00018434,2]
[372874152,1752787848706,-460.0,0.00018434,2]
[372874153,1752787848716,-460.0,0.00018434,2]
[372874154,1752787848725,-460.0,0.00018434,2]
[372874155,1752787848735,-460.0,0.00018434,2]
[372874156,1752787848746,-527.91,0.00018434,2]
[372874157,1752787848756,-460.0,0.00018434,2]
[372874158,1752787848766,-425.24,0.00018434,2]
[372874159,1752787848775,-743.69,0.00018434,2]
[372874160,1752787848785,-488.85,0.00018434,2]
[372874161,1752787848795,-460.0,0.00018435,2]
[372874162,1752787848804,-460.0,0.00018435,2]
[372874163,1752787848814,-460.0,0.00018435,2]
[372874164,1752787848823,-460.0,0.00018435,2]
[372874165,1752787848832,-460.0,0.00018435,2]
[372874166,1752787848842,-333.14751769,0.00018435,2]
[372874167,1752787848851,-460.0,0.00018435,2]
[372874168,1752787848860,-460.0,0.00018435,2]
[372874169,1752787848870,-2558.1,0.00018435,2]
[372874170,1752787848879,-902.37,0.00018435,2]
[372874171,1752787848889,-460.0,0.00018435,2]
[372874172,1752787848898,-460.0,0.00018435,2]
[372874173,1752787848908,-460.0,0.00018435,2]
[372874174,1752787848917,-858.09,0.00018435,2]
[372874175,1752787848926,-460.0,0.00018436,2]
[372874176,1752787848938,-860.36,0.00018436,2]
[372874177,1752787848947,-842.54,0.00018436,2]
[372874178,1752787848957,-460.0,0.00018436,2]
[372874179,1752787848967,-460.0,0.00018436,2]
[372874180,1752787848977,-460.0,0.00018436,2]
[372874181,1752787848987,-508.8848807,0.00018437,2]
[372874182,1752787848996,-233.98,0.00018437,2]
[372874183,1752787849006,-460.0,0.00018437,2]
[372874184,1752787849015,-308.83472828,0.00018437,2]
[372874185,1752787849025,-460.0,0.00018437,2]
[372874186,1752787849035,-151.0,0.00018437,2]
[372874187,1752787849045,-151.0,0.00018437,2]
[372874188,1752787849056,-295.375439,0.00018437,2]
[372874189,1752787849069,-151.0,0.00018437,2]
[372874190,1752787849079,-295.375439,0.00018437,2]
[372874191,1752787849089,-460.0,0.00018437,2]
[372874192,1752787849099,-151.0,0.00018437,2]
[372874193,1752787849109,-151.0,0.00018437,2]
[372874194,1752787849119,-151.0,0.00018437,2]
[372874195,1752787849129,-696.378098,0.00018437,2]
[372874196,1752787849140,-696.378098,0.00018437,2]
[372874197,1752787849151,-460.0,0.00018437,2]
[372874198,1752787849160,-460.0,0.00018437,2]
[372874199,1752787849170,-151.0,0.00018437,2]
[372874200,1752787849181,-151.0,0.00018437,2]
[372874201,1752787849190,-151.0,0.00018437,2]
[372874202,1752787849200,-460.0,0.00018437,2]
[372874203,1752787849210,-207.06735334,0.00018437,2]
[372874204,1752787849220,-460.0,0.00018437,2]
[372874205,1752787849230,-508.89,0.00018437,2]
[372874206,1752787849240,-460.0,0.00018437,2]
[372874207,1752787849251,-460.0,0.00018437,2]
[372874208,1752787849260,-797.17,0.00018437,2]
[372874209,1752787849270,-1500.0,0.00018468,2]
[372874210,1752787849280,-1500.0,0.00018468,2]
[372874211,1752787849290,-1000.0,0.00018468,2]
[372874212,1752787849300,-500.0,0.00018468,2]
[372874213,1752787849311,-1500.0,0.00018568,2]
[372874214,1752787849321,-1500.0,0.00018568,2]
[372874215,1752787849330,-216.77627053,0.00018592,2]
[372874216,1752787849340,-460.0,0.00018707,2]
[372874217,1752787849350,-910.41,0.00018707,2]
[372874218,1752787849359,-1267.88,0.00018707,2]
[372874219,1752787849369,-957.69,0.00018707,2]
[372874220,1752787849378,-460.0,0.00018707,2]
[372874221,1752787849388,-460.0,0.00018707,2]
[372874222,1752787849398,-1186.63,0.00018707,2]
[372874223,1752787849408,-460.0,0.00018707,2]
[372874224,1752787849418,-1406.18,0.00018707,2]
[372874225,1752787849428,-460.0,0.00018707,2]
[372874226,1752787849439,-460.0,0.00018707,2]
[372874227,1752787849449,-460.0,0.00018707,2]
[372874228,1752787849459,-460.0,0.00018707,2]
[372874229,1752787849468,-460.0,0.00018707,2]
[372874230,1752787849477,-460.0,0.00018707,2]
[372874231,1752787849487,-460.0,0.00018707,2]
[372874232,1752787849496,-460.0,0.00018708,2]
[372874233,1752787849506,-460.0,0.00018708,2]
[372874234,1752787849515,-460.0,0.00018708,2]
[372874235,1752787849526,-460.0,0.00018708,2]
[372874236,1752787849535,-460.0,0.00018708,2]
[372874237,1752787849545,-500.0,0.00018708,2]
[372874238,1752787849554,-460.0,0.00018708,2]
[372874239,1752787849563,-460.0,0.00018708,2]
[372874240,1752787849573,-460.0,0.00018708,2]
[372874241,1752787849582,-460.0,0.00018708,2]
[372874242,1752787849591,-527.91,0.00018708,2]
[372874243,1752787849601,-460.0,0.00018708,2]
[372874244,1752787849610,-743.69,0.00018708,2]
[372874245,1752787849620,-488.85,0.00018708,2]
[372874246,1752787849629,-2740.63491796,0.00018709,2]
[372874247,1752787849638,-460.0,0.00018709,2]
[372874248,1752787849647,-460.0,0.00018709,2]
[372874249,1752787849657,-460.0,0.00018709,2]
[372874250,1752787849666,-460.0,0.00018709,2]
[372874251,1752787849676,-460.0,0.00018709,2]
[372874252,1752787849689,-457.4395539,0.00018709,2]
[372874253,1752787849698,-2558.1,0.00018709,2]
[372874254,1752787849707,-902.37,0.00018709,2]
[372874255,1752787849716,-460.0,0.00018709,2]
[372874256,1752787849725,-460.0,0.00018709,2]
[372874257,1752787849735,-460.0,0.00018709,2]
[372874258,1752787849744,-858.09,0.00018709,2]
[372874259,1752787849754,-460.0,0.0001871,2]
[372874260,1752787849763,-860.36,0.0001871,2]
[372874261,1752787849772,-842.54,0.0001871,2]
[372874262,1752787849782,-460.0,0.0001871,2]
[372874263,1752787849791,-460.0,0.0001871,2]